bitfinex/quotes_BTCUSD_20250119
["timestamp","ask_amount","ask_price","bid_price","bid_amount"]
[1737277454924,0.36962144,104390.0,104380.0,0.01558153]
[1737277455150,0.46886225,104390.0,104380.0,0.01558153]
[1737277455345,0.47880586,104390.0,104380.0,0.01558153]
[1737277455491,0.47880586,104390.0,104380.0,0.00599339]
[1737277456720,0.023,104380.0,104370.0,0.14977046]
[1737277457283,0.22191066,104390.0,104370.0,0.44677028]
[1737277457804,0.3377066,104390.0,104370.0,0.25515328]
[1737277457974,0.5292956,104390.0,104370.0,0.44679534]
[1737277458114,0.22191066,104390.0,104370.0,0.44679534]
[1737277458687,0.5292956,104390.0,104370.0,0.25517034]
[1737277458890,0.023,104380.0,104370.0,0.10539988]
[1737277459092,0.023,104380.0,104370.0,0.00958888]
[1737277459299,0.118803,104380.0,104370.0,0.00958888]
[1737277459502,0.1031,104380.0,104370.0,0.00958888]
[1737277459704,0.29814381,104380.0,104370.0,0.00958888]
[1737277460121,0.20234081,104380.0,104370.0,0.00958888]
[1737277460749,0.1031,104380.0,104360.0,0.20210036]
[1737277460959,0.1031,104380.0,104370.0,0.095812]
[1737277461572,0.1031,104380.0,104360.0,0.01046836]
[1737277461777,0.29814681,104380.0,104360.0,0.0200572]
[1737277461987,0.20234081,104380.0,104360.0,0.1158782]
[1737277463015,0.20234081,104380.0,104360.0,0.3075212]
[1737277463632,0.29814581,104380.0,104360.0,0.0200572]
[1737277463862,0.20234081,104380.0,104360.0,0.10630638]
[1737277464085,0.20234081,104380.0,104360.0,0.29795038]
[1737277464281,0.20234081,104380.0,104360.0,0.28836154]
[1737277465649,0.20234081,104380.0,104370.0,0.095812]
[1737277465871,0.1031,104380.0,104370.0,0.095812]
[1737277466626,0.38494396,104390.0,104370.0,0.24924081]
[1737277466882,0.38494396,104390.0,104380.0,0.73413975]
[1737277467092,0.00101466,104390.0,104380.0,0.73413975]
[1737277467904,0.00101466,104390.0,104380.0,0.3546327]
[1737277468556,0.00101466,104390.0,104380.0,1.18653314]
[1737277469188,0.00101466,104390.0,104380.0,1.30232908]
[1737277469333,0.00101466,104390.0,104380.0,0.47042864]
[1737277469745,0.00101466,104390.0,104380.0,0.47641976]
[1737277471244,0.00101466,104390.0,104380.0,1.17961039]
[1737277472253,0.00101466,104390.0,104380.0,0.56233192]
[1737277472883,0.02401466,104390.0,104380.0,0.19729517]
[1737277473084,0.02401466,104390.0,104380.0,0.10149217]
[1737277473287,0.20105547,104390.0,104380.0,0.10858887]
[1737277474041,0.20105547,104390.0,104380.0,0.08591216]
[1737277474653,0.20105547,104390.0,104370.0,0.29699882]
[1737277475111,0.20105547,104390.0,104370.0,0.30299173]
[1737277475546,0.12224081,104380.0,104370.0,0.01556373]
[1737277475679,0.12224081,104380.0,104370.0,0.00599291]
[1737277476707,0.46620166,104390.0,104380.0,0.245803]
[1737277476708,0.00101466,104390.0,104380.0,0.245803]
[1737277476919,0.00101466,104390.0,104380.0,0.46083975]
[1737277477140,0.00101466,104390.0,104380.0,0.48103727]
[1737277478137,0.00101466,104390.0,104380.0,0.49661743]
[1737277484299,0.00101466,104390.0,104380.0,0.49516371]
[1737277485681,0.00101466,104390.0,104380.0,0.3959229]
[1737277486429,0.00101466,104390.0,104380.0,0.13012696]
[1737277486629,0.02401466,104390.0,104380.0,0.01558016]
[1737277486811,0.02401466,104390.0,104380.0,0.11138316]
[1737277487016,0.19855547,104390.0,104380.0,0.00599105]
[1737277487642,0.29434947,104390.0,104380.0,0.00599105]
[1737277487904,0.29434947,104390.0,104380.0,0.00688859]
[1737277488445,0.29434947,104390.0,104380.0,0.00089754]
[1737277488878,0.19855547,104390.0,104380.0,0.00089754]
[1737277491894,0.29434947,104390.0,104380.0,0.00089754]
[1737277492099,0.51014541,104390.0,104380.0,0.00089754]
[1737277494499,0.85718622,104390.0,104380.0,0.00089754]
[1737277494648,0.7263538,104390.0,104380.0,0.00089754]
[1737277495070,0.44150794,104370.0,104360.0,0.00089754]
[1737277495267,0.56374875,104370.0,104360.0,0.00089754]
[1737277496443,0.46374875,104370.0,104360.0,0.00089754]
[1737277496604,0.56298956,104370.0,104360.0,0.00089754]
[1737277497167,0.71298956,104370.0,104360.0,0.00089754]
[1737277499648,0.79830718,104370.0,104360.0,0.00089754]
[1737277499851,0.80646718,104370.0,104360.0,0.00089754]
[1737277500296,0.46445843,104370.0,104360.0,0.00089754]
[1737277500535,0.44243486,104370.0,104360.0,0.00089754]
[1737277500740,0.23236386,104370.0,104360.0,0.09671954]
[1737277500944,0.21329405,104370.0,104360.0,0.09671954]
[1737277501724,0.13091466,104390.0,104370.0,0.191615]
[1737277502094,0.23015547,104390.0,104370.0,0.287423]
[1737277502683,0.32594947,104390.0,104370.0,0.095809]
[1737277502880,0.023,104380.0,104370.0,0.095809]
[1737277503123,0.21804681,104380.0,104360.0,0.09671354]
[1737277503329,0.40965381,104380.0,104360.0,0.00089754]
[1737277503541,0.095812,104370.0,104360.0,0.00089754]
[1737277503758,0.21805281,104370.0,104360.0,0.00089754]
[1737277503964,0.12224081,104370.0,104360.0,0.00089754]
[1737277504165,0.26579594,104380.0,104360.0,0.09671954]
[1737277504385,0.13091466,104390.0,104370.0,0.287435]
[1737277504584,0.59174741,104390.0,104360.0,0.28834254]
[1737277504716,0.97493041,104390.0,104360.0,0.47997554]
[1737277504916,0.023,104380.0,104360.0,0.38415954]
[1737277505117,0.023,104380.0,104370.0,0.095812]
[1737277505329,0.023,104380.0,104360.0,0.47997354]
[1737277505864,0.023,104380.0,104370.0,0.095812]
[1737277506267,0.023,104380.0,104360.0,0.28834254]
[1737277507136,0.40965381,104380.0,104360.0,0.00089754]
[1737277507488,0.21804681,104380.0,104360.0,0.09671754]
[1737277507919,0.40965481,104380.0,104360.0,0.00089754]
[1737277508316,0.21804681,104380.0,104360.0,0.09671854]
[1737277508516,0.21804681,104380.0,104360.0,0.28836054]
[1737277508713,0.52545375,104380.0,104360.0,0.00089754]
[1737277508987,0.21805281,104370.0,104360.0,0.00089754]
[1737277511367,0.51494875,104370.0,104360.0,0.00089754]
[1737277513152,0.39915281,104370.0,104360.0,0.00089754]
[1737277517442,0.48151978,104370.0,104360.0,0.00089754]
[1737277518042,0.20334081,104370.0,104360.0,0.00089754]
[1737277518266,0.10602457,104380.0,104360.0,0.28836254]
[1737277518470,0.20526538,104380.0,104360.0,0.00089754]
[1737277518671,0.118812,104370.0,104360.0,0.00089754]
[1737277519084,0.30041978,104370.0,104360.0,0.00089754]
[1737277519375,0.21805281,104370.0,104360.0,0.00089754]
[1737277522273,0.37651978,104370.0,104360.0,0.00089754]
[1737277523379,0.47651978,104370.0,104360.0,0.00089754]
[1737277523784,0.82201978,104370.0,104360.0,0.00089754]
[1737277523986,0.72201978,104370.0,104360.0,0.00089754]
[1737277524182,0.24384081,104370.0,104360.0,0.00089754]
[1737277524413,0.12224081,104370.0,104360.0,0.00089754]
[1737277524609,0.37372757,104380.0,104360.0,0.09671954]
[1737277524783,0.20526138,104380.0,104360.0,0.09671954]
[1737277524981,0.095812,104370.0,104360.0,0.00089754]
[1737277525248,0.023,104370.0,104360.0,0.00089754]
[1737277525667,0.023,104370.0,104360.0,0.09671954]
[1737277526044,0.58850238,104380.0,104360.0,0.00089754]
[1737277527302,0.20526438,104380.0,104360.0,0.09671654]
[1737277527504,0.19547421,104380.0,104360.0,0.28835854]
[1737277527711,0.095812,104370.0,104360.0,0.00089754]
[1737277527914,0.37115281,104370.0,104360.0,0.00089754]
[1737277528119,0.31805281,104370.0,104360.0,0.00089754]
[1737277528328,0.0004274,104380.0,104370.0,0.095812]
[1737277528734,0.0004274,104380.0,104360.0,0.55567754]
[1737277528942,0.1192314,104380.0,104360.0,0.55567754]
[1737277529068,0.0234274,104380.0,104360.0,0.55567754]
[1737277529288,0.1192314,104380.0,104360.0,0.56526819]
[1737277529935,0.1192314,104380.0,104360.0,0.37363519]
[1737277530100,0.1192314,104380.0,104360.0,0.37003818]
[1737277531874,0.00303699,104370.0,104360.0,0.37003818]
[1737277533828,0.00303699,104370.0,104360.0,0.17840618]
[1737277534029,0.00303699,104370.0,104360.0,0.51001396]
[1737277534237,0.00303699,104370.0,104360.0,0.27764699]
[1737277535551,0.00303699,104370.0,104360.0,0.28723558]
[1737277538154,0.02603699,104370.0,104360.0,0.43723558]
[1737277538937,0.0272752,104370.0,104360.0,0.18799477]
[1737277539167,0.0272752,104370.0,104360.0,0.01647977]
[1737277539365,0.0272752,104370.0,104360.0,0.11230177]
[1737277540762,0.0272752,104370.0,104360.0,0.10271318]
[1737277540985,0.38489498,104370.0,104360.0,0.00689118]
[1737277541191,0.30252801,104370.0,104360.0,0.00689118]
[1737277541831,0.30252801,104370.0,104360.0,0.00089754]
[1737277542032,0.0272752,104370.0,104360.0,0.09671954]
[1737277542987,0.0272752,104370.0,104360.0,0.10630905]
[1737277543575,0.0272752,104370.0,104360.0,0.11230224]
[1737277543986,0.0042752,104370.0,104360.0,0.29391002]
[1737277544181,0.0042752,104370.0,104360.0,0.21154305]
[1737277547274,0.0042752,104370.0,104360.0,0.11230224]
[1737277547475,0.00534724,104370.0,104360.0,0.11230224]
[1737277548290,0.02834724,104370.0,104360.0,0.11230224]
[1737277548606,0.02834724,104370.0,104360.0,0.01648024]
[1737277550639,0.02834724,104370.0,104360.0,0.11230224]
[1737277551190,0.03806325,104370.0,104360.0,0.11230224]
[1737277551839,0.02834724,104370.0,104360.0,0.11230224]
[1737277552808,0.0293653,104370.0,104360.0,0.11230224]
[1737277553024,0.03112041,104370.0,104360.0,0.11230224]
[1737277554212,0.03052041,104370.0,104360.0,0.11230224]
[1737277554633,0.0004274,104380.0,104370.0,0.0791]
[1737277554849,0.01083389,104390.0,104380.0,0.095803]
[1737277555058,0.1100747,104390.0,104380.0,0.095803]
[1737277555263,0.1083747,104390.0,104380.0,0.095803]
[1737277555481,0.2041697,104390.0,104370.0,0.18447782]
[1737277555712,0.1083747,104390.0,104380.0,0.0155827]
[1737277555905,0.1043747,104390.0,104380.0,0.0155827]
[1737277556820,0.1273747,104390.0,104380.0,0.0155827]
[1737277557021,0.1157747,104390.0,104380.0,0.0155827]
[1737277557227,0.12449484,104390.0,104380.0,0.0155827]
[1737277558991,0.12492274,104390.0,104380.0,0.0155827]
[1737277559397,0.12042274,104390.0,104380.0,0.0155827]
[1737277560657,0.13334903,104390.0,104380.0,0.0155827]
[1737277561097,0.22250878,104390.0,104380.0,0.0155827]
[1737277561297,0.09176504,104390.0,104380.0,0.0155827]
[1737277561875,0.04795513,104390.0,104380.0,0.19375267]
[1737277562088,0.01503499,104390.0,104380.0,0.19375267]
[1737277562290,0.01503499,104390.0,104380.0,0.44395156]
[1737277562502,0.01503499,104390.0,104380.0,0.56789348]
[1737277562861,0.00739476,104390.0,104380.0,0.57497524]
[1737277563065,0.00739476,104390.0,104380.0,0.72497524]
[1737277563504,0.00739476,104390.0,104380.0,0.57497524]
[1737277563712,0.00739476,104390.0,104380.0,0.78957746]
[1737277563925,0.00739476,104390.0,104380.0,0.55721049]
[1737277564154,0.03669833,104390.0,104380.0,0.55012873]
[1737277564595,0.02750744,104390.0,104380.0,0.55012873]
[1737277565017,0.01127601,104390.0,104380.0,0.6324957]
[1737277565319,0.01127601,104390.0,104380.0,0.55012873]
[1737277565444,0.0065198,104390.0,104380.0,0.55012873]
[1737277565657,0.0065198,104390.0,104380.0,0.42143867]
[1737277565864,0.01338954,104390.0,104380.0,0.42851362]
[1737277566666,0.01338954,104390.0,104380.0,0.81088059]
[1737277567395,0.00757228,104390.0,104380.0,0.91088059]
[1737277567828,0.01311841,104390.0,104380.0,0.93031083]
[1737277568069,0.00757228,104390.0,104380.0,1.05900089]
[1737277568287,0.00694188,104390.0,104380.0,1.05900089]
[1737277568486,0.00138676,104390.0,104380.0,1.05192594]
[1737277568700,0.00059762,104410.0,104400.0,0.0784]
[1737277568914,0.00069363,104410.0,104400.0,0.28395425]
[1737277569122,0.00069363,104410.0,104400.0,0.20459663]
[1737277569341,0.0830606,104410.0,104400.0,0.23921976]
[1737277569557,0.00069363,104410.0,104400.0,0.23921976]
[1737277570685,0.1060606,104410.0,104400.0,0.02515352]
[1737277570928,0.2018366,104410.0,104400.0,0.02515352]
[1737277571103,0.1060606,104410.0,104400.0,0.02515352]
[1737277571329,0.1060606,104410.0,104400.0,0.12093852]
[1737277571539,0.1060606,104410.0,104400.0,0.02515352]
[1737277571740,0.1047606,104410.0,104400.0,0.02515352]
[1737277571950,0.1047606,104410.0,104400.0,0.01556401]
[1737277572153,0.2005366,104410.0,104400.0,0.01556401]
[1737277572620,0.2766366,104410.0,104400.0,0.00599319]
[1737277573038,0.194876,104410.0,104400.0,0.00599319]
[1737277573246,0.27724297,104410.0,104400.0,0.00599319]
[1737277573648,0.118788,104400.0,104380.0,0.00089838]
[1737277573904,0.39272597,104400.0,104380.0,0.10013919]
[1737277574730,0.08236697,104390.0,104380.0,0.10013919]
[1737277574936,0.20116097,104390.0,104380.0,0.01647739]
[1737277575124,0.27726097,104390.0,104380.0,0.01647739]
[1737277575367,0.52650178,104390.0,104380.0,0.01647739]
[1737277575583,0.62650178,104390.0,104380.0,0.01647739]
[1737277576042,0.62650178,104390.0,104380.0,0.00089838]
[1737277576700,0.63337987,104390.0,104380.0,0.00089838]
[1737277578021,0.18834506,104390.0,104380.0,0.00089838]
[1737277578426,0.28413906,104390.0,104380.0,0.00089838]
[1737277579670,0.38337987,104390.0,104380.0,0.00089838]
[1737277580200,0.48337987,104390.0,104380.0,0.00089838]
[1737277580812,0.48246687,104390.0,104380.0,0.00089838]
[1737277581216,0.84169893,104390.0,104380.0,0.00089838]
[1737277581470,0.74169893,104390.0,104380.0,0.00089838]
[1737277582287,0.59169893,104390.0,104380.0,0.00089838]
[1737277583434,0.80499298,104390.0,104380.0,0.00089838]
[1737277584044,1.05499298,104390.0,104380.0,0.00089838]
[1737277584257,0.76259298,104390.0,104380.0,0.00089838]
[1737277584458,0.93322823,104390.0,104380.0,0.00089838]
[1737277584682,1.08322823,104390.0,104380.0,0.00089838]
[1737277585261,0.69929893,104390.0,104380.0,0.00089838]
[1737277585842,0.56869893,104390.0,104380.0,0.00089838]
[1737277586200,0.57629893,104390.0,104380.0,0.00089838]
[1737277586418,0.59929893,104390.0,104380.0,0.00089838]
[1737277586559,0.69929893,104390.0,104380.0,0.00089838]
[1737277587170,0.59929893,104390.0,104380.0,0.00089838]
[1737277589047,0.01671015,104390.0,104380.0,0.00089838]
[1737277589253,0.19487112,104390.0,104380.0,0.00089838]
[1737277589717,0.21787112,104390.0,104380.0,0.00089838]
[1737277589884,0.39551193,104390.0,104380.0,0.00089838]
[1737277590030,0.49551193,104390.0,104380.0,0.00089838]
[1737277590233,0.79551193,104390.0,104380.0,0.00089838]
[1737277590439,0.84231193,104390.0,104380.0,0.00089838]
[1737277591960,0.74231193,104390.0,104380.0,0.00089838]
[1737277592483,0.84231193,104390.0,104380.0,0.00089838]
[1737277592685,0.74231193,104390.0,104380.0,0.00089838]
[1737277594560,0.59231193,104390.0,104380.0,0.00089838]
[1737277595640,0.59273973,104390.0,104380.0,0.00089838]
[1737277597006,0.64877745,104390.0,104380.0,0.00089838]
[1737277597387,0.59273973,104390.0,104380.0,0.00089838]
[1737277605018,0.59273973,104390.0,104380.0,0.00759838]
[1737277611376,0.418812,104370.0,104360.0,0.00089754]
[1737277611580,0.86338675,104370.0,104360.0,0.00089754]
[1737277612039,0.91681393,104370.0,104360.0,0.00089754]
[1737277612246,0.81681393,104370.0,104360.0,0.00089754]
[1737277612445,0.73444696,104370.0,104360.0,0.00089754]
[1737277612616,0.54446696,104370.0,104360.0,0.00139868]
[1737277612858,0.45634696,104370.0,104360.0,0.00139868]
[1737277613024,0.46386696,104370.0,104360.0,0.00139868]
[1737277614022,0.61386696,104370.0,104360.0,0.00139868]
[1737277617224,0.77433393,104370.0,104360.0,0.00139868]
[1737277618001,0.69196696,104370.0,104360.0,0.00139868]
[1737277618203,0.70422205,104370.0,104360.0,0.00139868]
[1737277618555,1.30029001,104370.0,104360.0,0.00139868]
[1737277618687,1.31923522,104370.0,104360.0,0.00139868]
[1737277619371,1.2563538,104370.0,104360.0,0.00139868]
[1737277619570,1.1063538,104370.0,104360.0,0.00139868]
[1737277621324,1.23408266,104370.0,104360.0,0.00139868]
[1737277621524,1.33332347,104370.0,104360.0,0.00139868]
[1737277621728,1.23408266,104370.0,104360.0,0.00139868]
[1737277622687,1.31958778,104370.0,104360.0,0.00139868]
[1737277623729,1.23408266,104370.0,104360.0,0.00139868]
[1737277623867,1.13408266,104370.0,104360.0,0.00139868]
[1737277624287,0.93604868,104370.0,104360.0,0.00139868]
[1737277624489,0.83604868,104370.0,104360.0,0.00139868]
[1737277625316,0.83034525,104370.0,104360.0,0.00139868]
[1737277625556,0.83591966,104370.0,104360.0,0.00139868]
[1737277626059,1.13524388,104370.0,104360.0,0.00139868]
[1737277626984,1.10714388,104370.0,104360.0,0.00139868]
[1737277627652,1.00714388,104370.0,104360.0,0.00139868]
[1737277628685,1.10714388,104370.0,104360.0,0.00139868]
[1737277628896,1.25714388,104370.0,104360.0,0.00139868]
[1737277629257,1.00714388,104370.0,104360.0,0.00139868]
[1737277629455,1.10714388,104370.0,104360.0,0.00139868]
[1737277629633,1.00714388,104370.0,104360.0,0.00139868]
[1737277629836,0.70876578,104370.0,104360.0,0.00139868]
[1737277630302,0.71070603,104370.0,104360.0,0.00139868]
[1737277630666,0.81070603,104370.0,104360.0,0.00139868]
[1737277631049,0.96070603,104370.0,104360.0,0.00139868]
[1737277631244,0.80876714,104370.0,104360.0,0.00139868]
[1737277631734,0.95876714,104370.0,104360.0,0.00139868]
[1737277632120,0.80876714,104370.0,104360.0,0.00139868]
[1737277632438,0.95876714,104370.0,104360.0,0.00139868]
[1737277632856,0.80876714,104370.0,104360.0,0.00139868]
[1737277633103,0.70124714,104370.0,104360.0,0.00139868]
[1737277633332,0.44588017,104370.0,104360.0,0.08329868]
[1737277633531,0.55124714,104370.0,104360.0,0.08329868]
[1737277633927,0.52824714,104370.0,104360.0,0.08329868]
[1737277634287,0.55124714,104370.0,104360.0,0.08329868]
[1737277634639,0.42296533,104370.0,104360.0,0.08329868]
[1737277634811,0.42296533,104370.0,104360.0,0.00139868]
[1737277635006,0.67296533,104370.0,104360.0,0.00139868]
[1737277635348,0.74906533,104370.0,104360.0,0.00139868]
[1737277635687,1.04838955,104370.0,104360.0,0.00139868]
[1737277636690,1.17572524,104370.0,104360.0,0.00139868]
[1737277636867,1.32572524,104370.0,104360.0,0.00139868]
[1737277638454,1.19744343,104370.0,104360.0,0.00139868]
[1737277639078,1.02640102,104370.0,104360.0,0.00139868]
[1737277639284,0.55782102,104370.0,104360.0,0.00139868]
[1737277639493,0.33769684,104370.0,104360.0,0.08329868]
[1737277639698,0.43350884,104370.0,104360.0,0.08329868]
[1737277639910,0.51587581,104370.0,104360.0,0.08329868]
[1737277640161,0.44306381,104370.0,104360.0,0.08329868]
[1737277640915,0.61565473,104370.0,104360.0,0.08329868]
[1737277641377,0.60813473,104370.0,104360.0,0.08329868]
[1737277641956,0.43681369,104370.0,104360.0,0.08329868]
[1737277643015,0.23220591,104370.0,104360.0,0.17912068]
[1737277643137,0.23220591,104370.0,104360.0,0.08329868]
[1737277643996,0.53262569,104370.0,104360.0,0.00139868]
[1737277644196,0.40413491,104370.0,104360.0,0.00139868]
[1737277644579,0.63053491,104370.0,104360.0,0.00139868]
[1737277645005,0.85902569,104370.0,104360.0,0.00139868]
[1737277646059,1.15756763,104370.0,104360.0,0.00139868]
[1737277646299,1.30756763,104370.0,104360.0,0.00139868]
[1737277647116,1.17907685,104370.0,104360.0,0.00139868]
[1737277647929,1.00775581,104370.0,104360.0,0.00139868]
[1737277649183,1.09012278,104370.0,104360.0,0.00139868]
[1737277649513,0.99012278,104370.0,104360.0,0.00139868]
[1737277649655,0.90775581,104370.0,104360.0,0.00139868]
[1737277649862,1.00699662,104370.0,104360.0,0.00139868]
[1737277650062,0.90775581,104370.0,104360.0,0.00139868]
[1737277650903,0.95033209,104370.0,104360.0,0.00139868]
[1737277651488,0.95033209,104370.0,104320.0,0.46257764]
[1737277651489,0.173,104330.0,104320.0,0.46257764]
[1737277651687,0.59516158,104330.0,104320.0,0.08568392]
[1737277651797,0.78157164,104330.0,104320.0,0.06826893]
[1737277652421,0.77685678,104330.0,104320.0,0.06826893]
[1737277652659,0.78158157,104330.0,104320.0,0.06826893]
[1737277652891,0.82743249,104330.0,104320.0,0.06836494]
[1737277653118,0.92794884,104330.0,104320.0,0.06836494]
[1737277653283,1.44164152,104330.0,104320.0,9.601e-05]
[1737277653493,1.42400849,104330.0,104320.0,9.601e-05]
[1737277653631,1.34164152,104330.0,104320.0,9.601e-05]
[1737277653835,1.34164152,104330.0,104320.0,0.00089859]
[1737277654057,1.34164152,104330.0,104300.0,0.0004276]
[1737277654058,0.245868,104310.0,104300.0,0.0004276]
[1737277654251,0.245868,104310.0,104300.0,0.00057797]
[1737277654252,0.57407578,104310.0,104300.0,0.00057797]
[1737277654545,0.57791692,104310.0,104300.0,0.00057797]
[1737277654747,0.514772,104290.0,104270.0,0.00089754]
[1737277654858,0.30050278,104280.0,104270.0,0.00104764]
[1737277655057,0.68668982,104280.0,104270.0,0.00104764]
[1737277655322,0.68313063,104280.0,104270.0,0.00104764]
[1737277655508,0.32827097,104270.0,104260.0,0.0004279]
[1737277655709,0.45051178,104270.0,104260.0,0.0004279]
[1737277655929,0.45427828,104270.0,104260.0,0.0004279]
[1737277656125,0.55427828,104270.0,104260.0,0.0004279]
[1737277656300,0.65351909,104270.0,104260.0,0.0004279]
[1737277656479,0.15,104260.0,104250.0,0.00569716]
[1737277656698,0.15,104260.0,104250.0,0.00584762]
[1737277656699,0.62692178,104260.0,104250.0,0.00584762]
[1737277656883,0.268923,104250.0,104240.0,0.0008275]
[1737277657085,0.24595,104220.0,104210.0,0.0004283]
[1737277657283,0.32831697,104220.0,104210.0,0.0004283]
[1737277657483,0.47831697,104220.0,104210.0,0.0004283]
[1737277657728,0.47832697,104210.0,104200.0,0.29247756]
[1737277657950,0.24596,104210.0,104200.0,0.00085534]
[1737277658180,0.32832697,104210.0,104200.0,0.00085534]
[1737277658359,0.08236697,104210.0,104200.0,0.0005004]
[1737277658570,0.11332529,104210.0,104200.0,0.0005004]
[1737277658727,0.12691832,104210.0,104200.0,0.0005004]
[1737277658928,0.22615913,104210.0,104190.0,0.00108511]
[1737277659161,0.10280798,104210.0,104190.0,0.27540608]
[1737277659370,0.09924081,104200.0,104190.0,0.43901711]
[1737277659844,0.09924081,104200.0,104190.0,0.24706311]
[1737277660014,0.21360088,104220.0,104200.0,0.437892]
[1737277660240,0.09924081,104220.0,104200.0,0.43799109]
[1737277660363,0.095943,104230.0,104200.0,0.43799109]
[1737277660574,0.19518381,104230.0,104200.0,0.40411484]
[1737277660779,0.09924081,104230.0,104220.0,0.09595]
[1737277660976,0.09924081,104230.0,104210.0,0.245955]
[1737277661195,0.095933,104240.0,104210.0,0.437873]
[1737277661414,0.09924081,104240.0,104220.0,0.09595]
[1737277661617,0.09924081,104240.0,104220.0,0.287851]
[1737277662060,0.15157449,104250.0,104220.0,0.09595]
[1737277662255,0.2508153,104250.0,104220.0,0.287851]
[1737277662453,0.20564849,104250.0,104230.0,0.095938]
[1737277662657,0.05564849,104250.0,104230.0,0.29738982]
[1737277662873,0.22816053,104270.0,104250.0,0.287759]
[1737277663208,0.09924081,104260.0,104250.0,0.287766]
[1737277663536,0.09924081,104260.0,104250.0,0.095923]
[1737277663709,0.12816053,104270.0,104250.0,0.287767]
[1737277663889,0.09924081,104270.0,104260.0,0.095914]
[1737277664091,0.09939082,104270.0,104260.0,0.21203775]
[1737277664294,0.00015001,104270.0,104260.0,0.21203775]
[1737277664905,0.00015001,104270.0,104260.0,0.36203775]
[1737277665108,0.00015001,104270.0,104260.0,0.41123775]
[1737277665458,0.01914192,104290.0,104280.0,0.21201875]
[1737277665665,0.12816053,104310.0,104280.0,0.27569457]
[1737277665961,0.12831093,104310.0,104300.0,0.21200075]
[1737277666122,0.12831093,104310.0,104300.0,0.22157157]
[1737277666332,0.33971933,104320.0,104310.0,0.095868]
[1737277666507,0.00050123,104320.0,104310.0,0.2302431]
[1737277666747,0.00050123,104320.0,104310.0,0.36199175]
[1737277666948,0.00050123,104320.0,104310.0,0.46123256]
[1737277667206,0.00050123,104320.0,104310.0,0.65717736]
[1737277667455,0.00050123,104320.0,104310.0,0.66907895]
[1737277667640,0.00050123,104320.0,104310.0,0.71907895]
[1737277667841,0.0026385,104320.0,104310.0,0.80717736]
[1737277668393,0.0026385,104320.0,104310.0,0.55717736]
[1737277669185,0.0026385,104320.0,104310.0,0.31123256]
[1737277669391,0.0026385,104320.0,104310.0,0.095868]
[1737277670313,0.0026385,104320.0,104300.0,0.287615]
[1737277670542,0.10187931,104320.0,104290.0,0.0968654]
[1737277670695,0.09924081,104310.0,104290.0,0.0009804]
[1737277670876,0.10152268,104310.0,104290.0,0.0009804]
[1737277671282,0.10118803,104310.0,104290.0,0.0968654]
[1737277671484,0.10209216,104310.0,104290.0,0.0968654]
[1737277671904,0.10209216,104310.0,104300.0,0.095877]
[1737277672108,0.10209216,104310.0,104300.0,0.02129812]
[1737277672314,0.10242681,104310.0,104300.0,0.02129812]
[1737277672515,0.10242681,104310.0,104300.0,0.23329887]
[1737277672733,0.003186,104310.0,104300.0,0.02129812]
[1737277672893,0.003186,104310.0,104300.0,0.11717512]
[1737277674260,0.003186,104310.0,104300.0,0.23329887]
[1737277674870,0.003186,104310.0,104300.0,0.38329887]
[1737277675073,0.003186,104310.0,104300.0,0.44866343]
[1737277675448,0.003186,104310.0,104300.0,0.57849328]
[1737277675671,0.003186,104310.0,104300.0,0.69461703]
[1737277675880,0.003186,104310.0,104300.0,0.57849328]
[1737277676075,0.003186,104310.0,104300.0,0.72849328]
[1737277676276,0.003186,104310.0,104300.0,0.84461703]
[1737277676438,0.003186,104310.0,104300.0,0.94461703]
[1737277676639,0.00050123,104320.0,104310.0,0.095868]
[1737277676844,0.00050123,104320.0,104310.0,0.35744047]
[1737277677475,0.00050123,104320.0,104310.0,0.42496876]
[1737277677897,0.00050123,104320.0,104310.0,0.14207591]
[1737277678155,0.00455998,104320.0,104310.0,0.14207591]
[1737277678365,0.00455998,104320.0,104310.0,0.32572795]
[1737277678542,0.00455998,104320.0,104310.0,0.14207591]
[1737277678774,0.00139982,104320.0,104310.0,0.14207591]
[1737277678903,0.00139982,104320.0,104300.0,0.0963009]
[1737277679306,0.00139982,104320.0,104300.0,0.0004279]
[1737277679641,0.00455774,104320.0,104300.0,0.2880569]
[1737277679985,0.19965955,104320.0,104300.0,0.0004279]
[1737277680119,0.10379855,104320.0,104300.0,0.0963039]
[1737277680527,0.10483672,104320.0,104300.0,0.0963039]
[1737277680731,0.20069672,104320.0,104300.0,0.0004279]
[1737277680928,0.19650063,104320.0,104300.0,0.0004279]
[1737277681539,0.10064063,104320.0,104300.0,0.0963039]
[1737277681952,0.19649963,104320.0,104300.0,0.0004279]
[1737277682354,0.29740881,104310.0,104300.0,0.0004279]
[1737277682577,0.39740881,104310.0,104300.0,0.0004279]
[1737277682930,0.30154081,104310.0,104300.0,0.0004279]
[1737277683126,0.20154081,104310.0,104300.0,0.0004279]
[1737277683531,0.54740881,104310.0,104300.0,0.0004279]
[1737277683740,0.54740881,104310.0,104290.0,0.0009804]
[1737277683741,0.518877,104300.0,104290.0,0.0009804]
[1737277683908,0.095899,104280.0,104250.0,0.09720044]
[1737277684104,0.221608,104270.0,104250.0,0.0004281]
[1737277684313,0.221608,104270.0,104240.0,0.27866184]
[1737277684635,0.32084681,104270.0,104240.0,0.28864734]
[1737277684846,0.09924081,104260.0,104240.0,0.09678334]
[1737277685068,0.09924081,104260.0,104240.0,0.09693674]
[1737277685284,0.09924081,104260.0,104240.0,0.0960814]
[1737277685497,0.12224081,104260.0,104250.0,0.095923]
[1737277685722,0.09924081,104260.0,104250.0,0.095923]
[1737277685932,0.1257,104300.0,104280.0,0.095889]
[1737277686132,0.09924081,104290.0,104280.0,0.095889]
[1737277686360,0.1257,104300.0,104280.0,0.095889]
[1737277686562,0.22494081,104300.0,104270.0,0.52545204]
[1737277686762,0.22494081,104300.0,104280.0,0.287684]
[1737277686974,0.22494081,104300.0,104280.0,0.10584827]
[1737277687185,0.22494081,104300.0,104290.0,0.095886]
[1737277687589,0.1257,104300.0,104290.0,0.095886]
[1737277690036,0.1257,104300.0,104280.0,0.29778367]
[1737277690455,0.1257,104300.0,104280.0,0.10599567]
[1737277690608,0.1257,104300.0,104280.0,0.29778567]
[1737277690813,0.1257,104300.0,104280.0,0.10599567]
[1737277691027,0.1257,104300.0,104280.0,0.0001504]
[1737277691028,0.51257481,104300.0,104280.0,0.0001504]
[1737277691226,0.36812681,104290.0,104280.0,0.0001504]
[1737277691424,0.21812681,104290.0,104280.0,0.0001504]
[1737277691610,0.12224081,104290.0,104280.0,0.0001504]
[1737277692000,0.31812681,104290.0,104280.0,0.0001504]
[1737277695184,0.40086069,104290.0,104280.0,0.0001504]
[1737277695422,0.83046069,104290.0,104280.0,0.0001504]
[1737277695667,0.73046069,104290.0,104280.0,0.0001504]
[1737277696771,0.64772681,104290.0,104280.0,0.0001504]
[1737277696973,0.59772681,104290.0,104280.0,0.0001504]
[1737277697148,0.25184081,104290.0,104280.0,0.0001504]
[1737277697390,0.22884081,104290.0,104280.0,0.0001504]
[1737277697525,0.32472681,104290.0,104280.0,0.0001504]